bitfinex-derivatives/quotes_SOLF0:USTF0_20260203
["timestamp","ask_amount","ask_price","bid_price","bid_amount"]
[1770130936217,3.82152934,100.59,100.51,3.65989075]
[1770130937329,8.9567,100.58,100.52,8.9616]
[1770130938424,9.84173198,100.62,100.54,3.65989075]
[1770130938730,143.13372934,100.59,100.51,12.62189075]
[1770130939224,8.9593,100.55,100.49,8.9643]
[1770130939428,9.84173198,100.58,100.49,143.10819075]
[1770130939723,3.82152934,100.6,100.52,3.65989075]
[1770130941329,3.61216823,100.59,100.52,396.72]
[1770130941523,3.61216823,100.58,100.5,3.58326506]
[1770130942824,142.89636823,100.61,100.52,3.58326506]
[1770130943023,3.61216823,100.6,100.52,3.58326506]
[1770130943326,3.61216823,100.6,100.52,278.8076]
[1770130943523,3.61216823,100.6,100.53,142.97606506]
[1770130943720,3.61216823,100.63,100.55,3.58326506]
[1770130944126,3.61216823,100.66,100.58,3.58326506]
[1770130944326,3.61216823,100.66,100.58,142.90276506]
[1770130944724,3.61216823,100.66,100.58,12.53906506]
[1770130944725,3.61216823,100.65,100.58,12.53906506]
[1770130944925,3.61216823,100.65,100.58,142.90516506]
[1770130945633,6.02020264,100.61,100.53,139.3932]
[1770130945826,6.02020264,100.61,100.53,4.14311295]
[1770130946629,145.30370264,100.61,100.53,13.10411295]
[1770130946833,145.30370264,100.61,100.51,536.1815]
[1770130947124,145.33290264,100.59,100.5,4.14311295]
[1770130947321,8.9566,100.58,100.5,143.57161295]
[1770130947522,192.56,100.6,100.52,4.13712769]
[1770130947727,8.9565,100.59,100.52,13.09902769]
[1770130947929,331.8581,100.6,100.52,4.13712769]
[1770130948326,145.33620264,100.59,100.49,143.58632769]
[1770130948723,331.8581,100.6,100.52,143.54122769]
[1770130948724,62.0,100.6,100.52,143.54122769]
[1770130948927,136.86020264,100.63,100.53,143.52875011]
[1770130949233,6.02020264,100.67,100.6,139.2938]
[1770130949426,6.02020264,100.67,100.58,396.74]
[1770130949427,139.2005,100.67,100.58,396.74]
[1770130949625,145.24900264,100.65,100.56,4.13865011]
[1770130949831,145.22070264,100.67,100.58,4.13865011]
[1770130950231,139.2146,100.66,100.56,139.3519]
[1770130950432,6.02020264,100.67,100.6,143.42945011]
[1770130950634,145.13960264,100.73,100.63,4.13865011]
[1770130950933,139.1313,100.72,100.63,4.13865011]
[1770130952031,201.1313,100.72,100.63,4.13865011]
[1770130952234,145.09450264,100.77,100.67,143.32716834]
[1770130952434,145.08320264,100.77,100.67,143.32716834]
[1770130952634,8.9416,100.75,100.67,4.12856834]
[1770130952928,139.0915,100.75,100.67,4.12856834]
[1770130953132,139.0499,100.78,100.69,4.16382909]
[1770130953331,8.9395,100.78,100.69,152.28242909]
[1770130953528,147.988,100.78,100.69,13.11042909]
[1770130953734,8.9401,100.77,100.69,4.16382909]
[1770130954136,148.0048,100.77,100.69,4.16382909]
[1770130954336,139.0769,100.76,100.66,13.11272909]
[1770130954529,139.0769,100.76,100.66,143.37692909]
[1770130954732,139.0647,100.77,100.68,4.16382909]
[1770130955030,139.0479,100.79,100.69,143.23742817]
[1770130955235,131.06,100.81,100.72,4.06532817]
[1770130955432,6.02020264,100.84,100.74,143.15782817]
[1770130955631,8.9341,100.84,100.75,8.941]
[1770130955932,8.9341,100.84,100.75,152.09442817]
[1770130956138,140.0122,100.86,100.76,152.08062817]
[1770130956340,8.9322,100.86,100.77,143.12432817]
[1770130956539,138.9323,100.87,100.78,4.06532817]
[1770130957034,131.02,100.89,100.8,139.0206]
[1770130957342,131.02,100.89,100.79,4.06350915]
[1770130957343,138.9115,100.88,100.79,4.06350915]
[1770130957643,138.9115,100.88,100.77,396.5]
[1770130957644,5.99929771,100.86,100.77,8.9392]
[1770130957840,144.93779771,100.86,100.76,4.06350915]
[1770130958236,138.9671,100.84,100.76,4.06350915]
[1770130958539,138.9946,100.82,100.73,4.06350915]
[1770130958839,153.92919771,100.82,100.73,4.06350915]
[1770130959238,147.9463,100.81,100.73,4.06350915]
[1770130959438,139.0394,100.79,100.7,400.43393738]
[1770130959837,5.99929771,100.8,100.71,4.07393738]
[1770130960032,139.0227,100.8,100.71,4.07393738]
[1770130960231,139.05,100.78,100.71,4.07393738]
[1770130960435,139.05,100.78,100.7,396.36]
[1770130960635,139.0914,100.75,100.68,4.07393738]
[1770130960838,148.033,100.75,100.68,4.07393738]
[1770130961040,148.033,100.75,100.65,4.10555379]
[1770130961342,148.106,100.7,100.62,4.10555379]
[1770130961644,139.191,100.68,100.62,4.10555379]
[1770130961833,139.191,100.68,100.6,4.10555379]
[1770130962041,139.232,100.65,100.53,363.90752447]
[1770130962335,139.3068,100.6,100.5,139.4226]
[1770130962540,139.3115,100.59,100.5,396.28]
[1770130962745,148.238,100.61,100.51,139.421]
[1770130963043,3.56854184,100.62,100.53,139.3938]
[1770130963345,139.2568,100.63,100.53,139.3938]
[1770130963645,139.2568,100.63,100.53,139.394]
[1770130963942,139.2569,100.63,100.53,148.3494]
[1770130964142,139.2569,100.63,100.54,399.88326506]
[1770130964339,201.2389,100.65,100.55,3.58326506]
[1770130964647,139.2436,100.64,100.56,399.92326506]
[1770130965141,148.195,100.64,100.56,399.92326506]
[1770130965532,151.5357874,100.64,100.56,399.92326506]
[1770130965738,3.3387874,100.64,100.56,399.92326506]
[1770130966337,3.3387874,100.67,100.57,142.92166506]
[1770130966534,3.3387874,100.67,100.58,399.98326506]
[1770130966940,151.4890874,100.67,100.58,399.98326506]
[1770130967141,139.2146,100.66,100.58,399.98326506]
[1770130967342,142.5401874,100.67,100.58,399.98326506]
[1770130967740,131.86,100.7,100.6,142.87626506]
[1770130968033,139.1027,100.75,100.65,3.58326506]
[1770130968034,139.0956,100.75,100.65,3.58326506]
[1770130968243,142.22664715,100.71,100.61,12.53626506]
[1770130968446,142.22664715,100.71,100.61,400.02326506]
[1770130968746,151.17164715,100.71,100.61,400.02326506]
[1770130969040,142.22664715,100.71,100.61,3.58326506]
[1770130969545,139.1455,100.71,100.61,3.58326506]
[1770130969846,2.83569181,100.69,100.61,3.58326506]
[1770130970043,142.01379181,100.69,100.61,3.58326506]
[1770130970244,142.04049181,100.67,100.58,3.58326506]
[1770130970746,2.83569181,100.67,100.58,142.90566506]
[1770130970942,2.83569181,100.67,100.58,3.58326506]
[1770130971143,2.81545727,100.65,100.55,142.88868111]
[1770130971345,2.81545727,100.65,100.55,151.84758111]
[1770130972244,2.81545727,100.65,100.55,548.28758111]
[1770130972444,150.99645727,100.65,100.55,408.92238111]
[1770130972838,11.76605727,100.65,100.56,151.78686344]
[1770130973246,11.76605727,100.65,100.56,12.43496344]
[1770130973442,142.04554701,100.63,100.55,396.44]
[1770130973646,2.78974701,100.63,100.54,548.27546344]
[1770130973948,139.2282,100.65,100.56,3.47706344]
[1770130974147,148.1794,100.65,100.56,408.89516344]
[1770130974351,139.2422,100.64,100.56,399.93706344]
[1770130974543,8.9523,100.63,100.56,399.93706344]
[1770130974942,148.2082,100.63,100.54,399.95706344]
[1770130975142,142.01759659,100.63,100.54,399.95706344]
[1770130975944,11.71579659,100.61,100.54,396.48]
[1770130977050,142.06165545,100.59,100.5,396.52]
[1770130977351,8.9569,100.58,100.5,408.96006344]
[1770130977950,142.06165545,100.59,100.5,408.96006344]
[1770130979359,8.957,100.58,100.5,408.96006344]
[1770130979652,2.74986517,100.57,100.5,396.52]
[1770130979858,8.9595,100.55,100.48,8.9648]
[1770130980151,139.3401,100.57,100.49,3.47706344]
[1770130980450,8.956,100.59,100.5,539.53276344]
[1770130980653,142.04916517,100.6,100.51,3.47706344]
[1770130980854,139.3136,100.59,100.51,3.47706344]
[1770130981050,142.04836517,100.6,100.52,3.47706344]
[1770130981255,139.3116,100.59,100.52,3.47706344]
[1770130981451,139.3531,100.56,100.48,3.47706344]
[1770130981651,2.70288675,100.57,100.49,3.47706344]
[1770130981856,142.00048675,100.6,100.51,3.47706344]
[1770130982060,139.2958,100.61,100.52,3.47706344]
[1770130982252,2.70288675,100.62,100.54,3.47706344]
[1770130982451,2.70288675,100.62,100.54,12.43706344]
[1770130982660,139.2839,100.61,100.54,3.47706344]
[1770130982855,139.2853,100.61,100.54,3.47706344]
[1770130983356,11.65618675,100.62,100.54,3.47706344]
[1770130983563,2.70288675,100.62,100.54,142.85676344]
[1770130983762,141.97328675,100.62,100.54,3.47706344]
[1770130984158,141.94856462,100.65,100.56,3.47706344]
[1770130984463,141.92016462,100.67,100.57,142.81556344]
[1770130984858,11.65716462,100.67,100.59,8.9553]
[1770130985059,141.90866462,100.67,100.59,8.9553]
[1770130985265,139.1477,100.71,100.61,142.76016344]
[1770130985462,139.1731,100.69,100.61,3.47706344]
[1770130985759,139.1627,100.7,100.61,3.47706344]
[1770130985971,574.3322,100.74,100.66,3.47706344]
[1770130985972,2.74576847,100.74,100.66,3.47706344]
[1770130986263,144.0603,100.78,100.66,3.47706344]
[1770130986264,145.09071485,100.77,100.68,3.47706344]
[1770130986462,8.9418,100.75,100.68,3.47706344]
[1770130986765,8.9418,100.75,100.65,3.47706344]
[1770130986766,139.1044,100.74,100.65,3.47706344]
[1770130987059,139.1178,100.73,100.65,3.47706344]
[1770130987564,8.9436,100.73,100.65,12.42726344]
[1770130988264,139.137,100.72,100.64,396.7]
[1770130988661,62.0,100.75,100.65,3.47706344]
[1770130988864,141.84573994,100.76,100.68,3.47706344]
[1770130989161,5.0,100.78,100.7,3.47706344]
[1770130989368,5.0,100.78,100.72,142.60036344]
[1770130989560,141.77934624,100.82,100.73,3.47706344]
[1770130989864,150.71494624,100.82,100.73,3.47706344]
[1770130990065,141.77934624,100.82,100.73,3.47706344]
[1770130990464,8.9348,100.83,100.75,12.41836344]
[1770130990665,147.919,100.83,100.75,3.47706344]
[1770130990964,139.0498,100.78,100.71,396.56]
[1770130991263,139.0782,100.76,100.68,3.47706344]
[1770130991462,148.0172,100.76,100.68,3.47706344]
[1770130991858,70.9411,100.76,100.68,3.47706344]
[1770130992258,150.8307327,100.75,100.67,396.56]
[1770130992561,139.0627,100.77,100.68,3.47706344]
[1770130992760,139.0909,100.75,100.68,3.47706344]
[1770130992957,141.8760327,100.76,100.68,3.47706344]
[1770130993169,141.8760327,100.76,100.67,400.03706344]
[1770130993763,139.0956,100.75,100.67,400.03706344]
[1770130994066,8.9422,100.75,100.67,400.03706344]
[1770130994263,139.0627,100.77,100.68,3.47706344]
[1770130994462,2.59458094,100.79,100.71,3.47706344]
[1770130994667,139.0131,100.81,100.72,3.47706344]
[1770130994867,147.9897,100.78,100.71,396.4]
[1770130995060,8.9394,100.78,100.71,396.4]
[1770130995465,142.03121895,100.83,100.74,3.47706344]
[1770130995666,555.7811,100.86,100.77,3.47706344]
[1770130995667,138.9397,100.86,100.77,3.47706344]
[1770130995867,138.9554,100.85,100.77,3.47706344]
[1770130996062,141.96601895,100.87,100.77,142.53816344]
[1770130996374,138.9666,100.84,100.77,3.47706344]
[1770130996670,8.9338,100.84,100.77,3.47706344]
[1770130997065,11.97131895,100.86,100.77,12.41626344]
[1770130997367,11.97131895,100.86,100.77,3.47706344]
[1770130997368,141.97771895,100.86,100.77,3.47706344]
[1770130997570,3.03901895,100.86,100.78,3.47706344]
[1770130997769,141.97791895,100.86,100.78,3.47706344]
[1770130997966,138.9947,100.82,100.75,396.32]
[1770130998166,139.009,100.81,100.72,3.47706344]
[1770130998369,138.98,100.83,100.74,3.47706344]
[1770130998566,141.99254658,100.84,100.75,3.47706344]
[1770130998770,141.99254658,100.84,100.75,399.73706344]
[1770130998970,8.9346,100.83,100.75,408.67826344]
[1770130999167,335.1363,100.85,100.76,3.47706344]
[1770130999369,8.9337,100.84,100.76,3.47706344]
[1770130999566,138.9694,100.84,100.76,3.47706344]
[1770130999873,138.9961,100.82,100.75,396.26]
[1770131000072,8.9364,100.81,100.75,396.26]
[1770131000468,147.9451,100.81,100.72,12.42056344]
[1770131000671,147.9451,100.81,100.72,408.64056344]
[1770131000974,139.0087,100.81,100.72,399.69706344]
[1770131001367,142.08022888,100.83,100.73,3.63604475]
[1770131001572,139.0073,100.81,100.73,3.63604475]
[1770131001875,8.9372,100.8,100.73,3.63604475]
[1770131002176,277.9486,100.84,100.76,3.63604475]
[1770131002370,8.9347,100.83,100.76,3.63604475]
[1770131002573,138.9224,100.88,100.78,3.63604475]
[1770131002777,138.9254,100.87,100.78,3.63604475]
[1770131003172,142.00070547,100.89,100.8,3.63604475]
[1770131003380,138.9121,100.88,100.81,3.63604475]
[1770131003775,8.9298,100.89,100.81,3.63604475]
[1770131003971,138.8697,100.91,100.82,3.63604475]
[1770131004273,8.9293,100.89,100.83,399.75604475]
[1770131004472,138.8837,100.9,100.83,399.75604475]
[1770131004672,138.8679,100.92,100.84,3.63604475]
[1770131004871,8.9271,100.92,100.84,3.63604475]
[1770131005079,141.91317322,100.95,100.86,3.63604475]
[1770131005374,141.91317322,100.95,100.85,535.0481]
[1770131005375,138.8246,100.95,100.87,3.63604475]
[1770131005578,138.8246,100.95,100.87,399.69604475]
[1770131005876,141.85692149,100.98,100.89,3.63604475]
[1770131006282,138.7851,100.98,100.89,3.63604475]
[1770131006481,138.7851,100.98,100.9,3.63604475]
[1770131006679,8.9209,100.99,100.91,3.63604475]
[1770131006886,8.9209,100.99,100.92,3.63604475]
[1770131007278,8.9213,100.98,100.92,3.63604475]
[1770131007477,3.08901415,101.04,100.92,3.63604475]
[1770131007677,3.08901415,101.04,100.95,3.30726446]
[1770131007678,277.4758,101.01,100.95,3.30726446]
[1770131007884,277.4758,101.01,100.92,3.30726446]
[1770131007885,138.7619,100.99,100.92,3.30726446]
[1770131008083,138.7731,100.98,100.89,399.30726446]
[1770131008384,138.7907,100.97,100.89,399.30726446]
[1770131008588,138.8181,100.95,100.89,396.0]
[1770131008977,8.9249,100.94,100.89,396.0]
[1770131009382,147.7834,100.92,100.84,395.84]
[1770131009681,138.8557,100.92,100.84,395.84]
[1770131009887,8.9275,100.91,100.84,395.84]
[1770131010077,138.8835,100.9,100.84,395.84]
[1770131010581,138.8557,100.92,100.84,395.84]
[1770131010779,136.28,100.94,100.85,3.02141405]
[1770131010780,138.8308,100.94,100.85,3.02141405]
[1770131011288,8.9257,100.93,100.85,3.02141405]
[1770131011481,138.8273,100.95,100.86,3.05574552]
[1770131011682,138.8273,100.95,100.87,395.76]
[1770131011879,138.8296,100.94,100.87,395.76]
[1770131012083,62.0,100.97,100.87,395.76]
[1770131012284,62.0,100.97,100.87,534.6834]
[1770131012285,138.7883,100.97,100.87,534.6834]
[1770131012490,138.7739,100.98,100.88,147.8398]
[1770131012680,138.7888,100.97,100.88,8.9293]
[1770131013689,8.9231,100.96,100.87,138.9243]
[1770131013885,138.7553,101.0,100.87,138.9243]
[1770131013886,40.58206291,101.03,100.93,138.8415]
[1770131014089,138.6908,101.04,100.94,395.7]
[1770131014290,138.7338,101.01,100.91,138.8667]
[1770131014786,138.7058,101.03,100.93,138.8399]
[1770131015294,147.6357,101.02,100.94,395.62]
[1770131015482,8.9176,101.02,100.94,395.62]
[1770131015887,188.18936291,101.04,100.94,534.4475]
[1770131016087,138.7049,101.03,100.94,395.62]
[1770131016286,179.31318362,101.02,100.94,395.62]
[1770131016487,138.7472,101.0,100.91,395.56]
[1770131016682,40.59328362,101.01,100.92,138.8503]
[1770131016883,138.7188,101.02,100.92,138.8503]
[1770131017087,138.7613,100.99,100.89,138.8918]
[1770131017391,179.3380941,101.01,100.91,138.8663]
[1770131017588,138.7053,101.03,100.93,138.8379]
[1770131017787,179.3362941,101.01,100.91,138.8663]
[1770131018091,40.6021941,101.01,100.94,8.9242]
[1770131018291,40.6021941,101.01,100.92,534.3687]
[1770131018487,40.6021941,101.01,100.93,138.8394]
[1770131018788,40.6021941,101.01,100.94,8.9243]
[1770131019096,8.9178,101.02,100.94,404.4043]
[1770131019492,241.3020941,101.04,100.95,8.9233]
[1770131019687,138.6613,101.07,100.95,138.813]
[1770131019688,179.23819697,101.07,100.95,138.813]
[1770131019988,40.57689697,101.1,101.01,138.7315]
[1770131020191,40.57689697,101.1,101.02,395.46]
[1770131020887,40.57689697,101.1,101.0,138.7422]
[1770131020888,179.18599697,101.1,101.0,138.7422]
[1770131021090,138.6373,101.08,101.01,395.42]
[1770131021286,138.6373,101.08,101.0,395.38]
[1770131021587,8.9117,101.09,101.0,404.299]
[1770131021994,179.18599697,101.1,101.01,534.1112]
[1770131021995,40.57689697,101.1,101.01,534.1112]
[1770131022294,8.9102,101.11,101.01,534.1112]
[1770131022491,8.9102,101.11,101.02,138.7175]
[1770131022799,138.54,101.15,101.05,138.6726]
[1770131022995,40.57124932,101.19,101.11,138.5896]
[1770131023205,40.57124932,101.19,101.14,8.9065]
[1770131023496,40.57124932,101.22,101.12,138.5715]
[1770131023698,147.3593,101.21,101.11,542.8387]
[1770131023893,138.5006,101.18,101.11,395.34]
[1770131024094,138.5139,101.17,101.11,395.34]
[1770131024294,147.4821,101.13,101.05,395.24]
[1770131024495,138.5673,101.13,101.05,395.24]
[1770131024691,147.4919,101.12,101.05,395.24]
[1770131024897,8.9091,101.12,101.05,395.24]
[1770131025193,179.15269987,101.16,101.06,138.6562]
[1770131025497,179.18679987,101.14,101.05,395.24]
[1770131025694,138.5812,101.12,101.05,395.24]
[1770131025889,147.5107,101.11,101.05,395.24]
[1770131026293,147.5254,101.1,101.05,395.24]
[1770131026494,179.24089987,101.1,101.01,395.1]
[1770131026890,49.57870281,101.09,100.99,198.14]
[1770131027089,40.66700281,101.08,100.99,533.8583]
[1770131027290,40.66700281,101.08,100.99,138.7583]
[1770131027497,40.66700281,101.08,101.0,395.06]
[1770131027991,40.66700281,101.08,101.0,542.7234]
[1770131028199,8.9136,101.07,101.0,395.06]
[1770131028398,179.33030281,101.06,100.98,395.04]
[1770131028595,40.66700281,101.06,100.98,395.04]
[1770131029190,138.6072,101.11,100.98,395.04]
[1770131029191,179.22729488,101.1,101.0,138.7446]
[1770131029398,179.23999488,101.09,100.99,138.758]
[1770131029592,40.61689488,101.08,100.99,8.9199]
[1770131030402,40.59622841,101.07,100.98,395.04]
[1770131030605,40.59622841,101.04,100.95,138.8131]
[1770131031402,155.83186392,101.07,100.95,138.8131]
[1770131031403,40.59622841,101.07,100.98,138.7684]
[1770131031602,40.59622841,101.07,101.0,138.7446]
[1770131031802,40.59622841,101.1,101.02,138.7171]
[1770131032203,40.59622841,101.1,101.03,8.9163]
[1770131032405,179.21872841,101.09,100.99,533.7697]
[1770131032598,40.59622841,101.08,100.99,395.02]
[1770131032799,40.59622841,101.08,101.0,138.744]
[1770131033000,138.5814,101.12,101.04,138.6904]
[1770131033001,40.60847814,101.12,101.04,138.6904]
[1770131033200,179.14617814,101.16,101.05,277.3428]
[1770131033402,40.60847814,101.16,101.08,8.9119]
[1770131033597,40.60847814,101.16,101.1,138.6077]
[1770131033804,40.60847814,101.16,101.09,403.9109]
[1770131034008,40.60847814,101.16,101.09,395.0]
[1770131034203,40.60847814,101.15,101.09,395.0]
[1770131034504,40.60847814,101.11,101.05,395.0]
[1770131034698,179.22087814,101.1,100.99,138.7507]
[1770131034903,40.60847814,101.1,101.02,8.9171]
[1770131035210,40.60847814,101.1,101.02,403.9171]
[1770131035415,40.60847814,101.1,101.02,395.0]
[1770131035605,49.51927814,101.1,101.02,403.9173]
[1770131036204,188.1084177,101.09,101.02,395.0]
[1770131036799,49.4857177,101.09,101.02,395.0]
[1770131037007,40.5741177,101.09,101.02,395.0]
[1770131037209,40.5741177,101.09,101.02,394.92]
[1770131037411,40.5741177,101.09,101.02,533.6355]
[1770131037607,40.47161543,101.12,101.02,533.6349]
[1770131037811,40.47161543,101.15,101.06,138.6593]
[1770131038003,179.01391543,101.15,101.05,533.5903]
[1770131038310,40.47161543,101.11,101.02,394.92]
[1770131038710,49.38151543,101.11,101.03,8.9165]
[1770131038909,40.47161543,101.11,101.03,138.7035]
[1770131039208,8.9081,101.13,101.04,138.6886]
[1770131039414,49.36988695,101.13,101.05,8.9146]
[1770131039614,40.46178695,101.13,101.05,138.6726]
[1770131039906,40.46178695,101.12,101.04,8.9151]
[1770131040112,40.46178695,101.16,101.06,138.6608]
[1770131040311,40.46178695,101.15,101.05,138.676]
[1770131040507,49.36808695,101.15,101.07,8.913]
[1770131040701,40.46178695,101.15,101.07,138.6494]
[1770131040906,40.46178695,101.21,101.13,277.1209]
[1770131041211,40.46178695,101.21,101.13,394.88]
[1770131041408,40.45548796,101.24,101.15,138.535]
[1770131041611,40.45548796,101.24,101.17,138.5068]
[1770131041911,10.7875694,101.25,101.17,138.5115]
[1770131042208,138.3917,101.26,101.16,138.5252]
[1770131042400,138.4032,101.25,101.15,533.4184]
[1770131042605,138.4333,101.23,101.15,394.88]
[1770131043007,138.4643,101.21,101.15,394.88]
[1770131043404,8.8989,101.24,101.15,403.7859]
[1770131043609,200.4013,101.26,101.16,138.5245]
[1770131043805,62.0,101.26,101.17,138.512]
[1770131044006,96.4542908,101.26,101.17,8.9041]
[1770131044314,25.5575908,101.24,101.15,533.4184]
[1770131044503,163.9759908,101.24,101.15,394.88]
[1770131044711,25.5575908,101.23,101.15,394.88]
[1770131045212,34.4569908,101.23,101.14,138.5518]
[1770131045413,25.5575908,101.23,101.15,138.5393]
[1770131045612,225.92742199,101.26,101.16,138.5201]
[1770131045916,163.95802199,101.24,101.14,394.72]
[1770131046110,138.4308,101.23,101.14,394.72]
[1770131046312,8.8995,101.23,101.14,403.6267]
[1770131046508,25.53662199,101.27,101.17,138.5104]
[1770131046712,25.53662199,101.29,101.19,138.4817]
[1770131046914,34.43082199,101.29,101.19,138.4817]
[1770131047113,163.89496109,101.32,101.21,138.4507]
[1770131047316,25.58186109,101.31,101.22,533.0802]
[1770131047517,25.58186109,101.31,101.22,138.4402]
[1770131047712,25.58186109,101.31,101.23,394.64]
[1770131048011,163.90296109,101.31,101.23,394.64]
[1770131048212,138.3273,101.31,101.23,394.64]
[1770131048411,25.58186109,101.3,101.2,138.4709]
[1770131048721,25.58186109,101.3,101.21,533.0552]
[1770131048911,8.8923,101.31,101.22,8.8995]
[1770131049218,138.3486,101.29,101.19,138.483]
[1770131049516,8.8959,101.27,101.18,394.52]
[1770131049808,62.0,101.29,101.19,138.482]
[1770131050207,180.87365117,101.34,101.24,138.4153]
[1770131050410,138.3078,101.32,101.24,394.48]
[1770131050812,25.40468725,101.3,101.24,394.48]
[1770131051014,138.3524,101.29,101.24,394.48]
[1770131051210,163.74068725,101.3,101.24,394.48]
[1770131051410,163.84634002,101.28,101.17,138.5003]
[1770131051618,138.3802,101.27,101.18,394.44]
[1770131051915,8.8987,101.24,101.18,394.44]
[1770131052119,138.4311,101.23,101.13,138.5566]
[1770131052314,138.4311,101.23,101.16,394.44]
[1770131052315,8.9003,101.22,101.16,394.44]
[1770131052519,25.48184002,101.24,101.14,138.5522]
[1770131052714,163.85834002,101.27,101.16,138.5245]
[1770131052917,8.897,101.26,101.18,8.9032]
[1770131053110,138.3632,101.28,101.18,138.4985]
[1770131053316,138.3432,101.3,101.19,532.8832]
[1770131053516,8.8953,101.28,101.2,8.9014]
[1770131053718,163.89054646,101.26,101.19,394.4]
[1770131054119,138.4043,101.25,101.19,394.4]
[1770131054417,163.82894646,101.31,101.21,138.4554]
[1770131054619,165.07674646,101.34,101.24,138.4165]
[1770131054916,25.49674646,101.37,101.27,276.7345]
[1770131055121,163.73594646,101.37,101.26,138.3892]
[1770131055321,138.3078,101.32,101.25,394.36]
[1770131055621,138.3227,101.31,101.25,394.36]
[1770131055818,8.8931,101.3,101.25,394.36]
[1770131056019,138.2942,101.33,101.25,394.36]
[1770131056223,8.8923,101.31,101.25,394.36]
[1770131056421,138.3487,101.29,101.18,155.66246392]
[1770131056634,138.4073,101.25,101.15,138.5391]
[1770131056816,163.82703462,101.26,101.15,138.5391]
[1770131056817,163.82703462,101.26,101.17,8.9041]
[1770131057015,163.82703462,101.26,101.16,394.32]
[1770131057218,276.8696,101.23,101.16,394.32]
[1770131057428,138.4306,101.23,101.13,336.2055]
[1770131057620,163.83226165,101.25,101.15,394.28]
[1770131057823,8.8968,101.26,101.17,8.904]
[1770131058019,138.4031,101.25,101.16,394.28]
[1770131058221,138.4472,101.22,101.11,138.583]
[1770131058428,8.901,101.21,101.12,394.26]
[1770131058622,138.4452,101.22,101.12,532.8359]
[1770131058822,163.86116165,101.23,101.12,532.8306]
[1770131059018,25.42926165,101.23,101.13,138.5669]
[1770131059223,163.86036165,101.23,101.12,532.8306]
[1770131059423,8.9001,101.22,101.13,138.5633]
[1770131059624,25.42926165,101.23,101.14,138.5524]
[1770131059824,163.85986165,101.23,101.13,138.5633]
[1770131060024,163.88189716,101.21,101.1,277.2052]
[1770131060329,163.88159716,101.21,101.1,138.6018]
[1770131060629,147.3738,101.2,101.11,8.9094]
[1770131060817,138.4717,101.2,101.09,138.609]
[1770131061022,163.83160962,101.19,101.08,532.8899]
[1770131061222,163.83160962,101.19,101.09,138.6146]
[1770131061223,25.33660962,101.19,101.09,138.6146]
[1770131061419,279.4378,101.21,101.1,277.2046]
[1770131061626,138.4859,101.19,101.11,394.28]
[1770131061918,8.9036,101.18,101.11,394.28]
[1770131062118,279.4378,101.21,101.11,394.28]
[1770131062529,138.4725,101.2,101.11,394.28]
[1770131062927,8.9028,101.19,101.11,403.1895]
[1770131063127,138.4578,101.21,101.11,532.8732]
[1770131063329,8.9001,101.22,101.14,8.9064]
[1770131063524,151.12754455,101.2,101.12,394.3]
[1770131063833,151.14074455,101.19,101.1,394.3]
[1770131064026,12.65524455,101.19,101.1,532.9081]
[1770131064225,151.10204455,101.22,101.12,138.5805]
[1770131064431,138.4583,101.21,101.13,394.32]
[1770131064732,12.65524455,101.21,101.13,394.32]
[1770131065132,12.64905419,101.24,101.14,138.5498]
[1770131065329,12.64905419,101.24,101.15,532.8582]
[1770131065527,151.05325419,101.25,101.16,394.32]
[1770131065731,151.07965419,101.23,101.16,394.32]
[1770131066328,8.9002,101.22,101.14,8.9063]
[1770131066535,151.09335419,101.22,101.13,394.34]
[1770131067027,21.54915419,101.22,101.14,8.9065]
[1770131067433,12.64905419,101.22,101.13,394.34]
[1770131067632,8.901,101.21,101.13,403.2477]
[1770131067832,12.64905419,101.22,101.13,532.904]
[1770131068231,21.54915419,101.22,101.14,8.9068]
[1770131068432,12.64905419,101.22,101.14,8.9068]
[1770131069232,12.64905419,101.22,101.15,8.906]
[1770131069435,12.64905419,101.22,101.15,403.246]
[1770131069735,12.65278144,101.2,101.1,138.6073]